fUSD/lending_fUSD_20240502
["ID","MTS","AMOUNT","RATE_DAILY","PERIOD"]
[325259732,1714667471946,-500.0,0.00036438,7]
[325259733,1714667471955,-518.71981614,0.00036438,7]
[325259734,1714667471965,-500.0,0.00036438,7]
[325259735,1714667471974,-1075.38,0.00036438,7]
[325259736,1714667471984,-2450.75,0.00036438,7]
[325259737,1714667471993,-859.24,0.00036438,7]
[325259738,1714667472003,-2394.49,0.00036438,7]
[325259739,1714667472012,-500.0,0.00036438,7]
[325259740,1714667472021,-500.0,0.00036438,7]
[325259741,1714667472031,-766.3,0.00036438,7]
[325259742,1714667472040,-504.29129274,0.00036438,7]
[325259743,1714667472049,-500.0,0.00036438,7]
[325259744,1714667472059,-500.0,0.00036438,7]
[325259745,1714667472068,-2392.73,0.00036438,7]
[325259746,1714667472077,-500.0,0.00036438,7]
[325259747,1714667472087,-500.0,0.00036438,7]
[325259748,1714667472096,-500.0,0.00036438,7]
[325259749,1714667472105,-500.0,0.00036438,7]
[325259750,1714667472115,-2382.0,0.00036438,7]
[325259751,1714667472124,-500.0,0.00036438,7]
[325259752,1714667472133,-500.0,0.00036438,7]
[325259753,1714667472147,-1941.48,0.00036438,7]
[325259754,1714667472156,-1926.58,0.00036438,7]
[325259755,1714667472165,-500.0,0.00036438,7]
[325259756,1714667472174,-500.0,0.00036438,7]
[325259757,1714667472183,-6189.53,0.00036438,7]
[325259758,1714667472192,-500.0,0.00036438,7]
[325259759,1714667472202,-500.0,0.00036438,7]
[325259760,1714667472211,-738.84,0.00036438,7]
[325259761,1714667472220,-1399.43,0.00036438,7]
[325259762,1714667472230,-4498.8,0.00036438,7]
[325259763,1714667472239,-500.0,0.00036438,7]
[325259764,1714667472249,-500.0,0.00036438,7]
[325259765,1714667472260,-500.0,0.00036438,7]
[325259766,1714667472269,-6355.14,0.00036438,7]
[325259767,1714667472278,-500.0,0.00036438,7]
[325259768,1714667472287,-500.0,0.00036438,7]
[325259769,1714667472297,-1273.4,0.00036438,7]
[325259770,1714667472306,-500.0,0.00036438,7]
[325259771,1714667472315,-500.0,0.00036438,7]
[325259772,1714667472327,-500.0,0.00036438,7]
[325259773,1714667472336,-500.0,0.00036438,7]
[325259774,1714667472345,-2103.26,0.00036438,7]
[325259775,1714667472354,-2173.09,0.00036438,7]
[325259776,1714667472363,-32919.23,0.00036438,7]
[325259777,1714667472372,-1670.97,0.00036438,7]
[325259778,1714667472382,-414.97304397,0.00036438,7]
[325259779,1714667472395,-570.67,0.00036438,7]
[325259780,1714667472404,-1332.14,0.00036438,7]
[325259781,1714667472413,-500.0,0.00036438,7]
[325259782,1714667472422,-1413.27,0.00036438,7]
[325259783,1714667472431,-500.0,0.00036438,7]
[325259784,1714667472441,-500.0,0.00036438,7]
[325259785,1714667472450,-2856.13,0.00036438,7]
[325259786,1714667472459,-500.0,0.00036438,7]
[325259787,1714667472469,-500.0,0.00036438,7]
[325259788,1714667472478,-500.0,0.00036438,7]
[325259789,1714667472488,-1301.09,0.00036438,7]
[325259790,1714667472497,-500.0,0.00036438,7]
[325259791,1714667472507,-6418.49,0.00036438,7]
[325259792,1714667472516,-2536.24,0.00036438,7]
[325259793,1714667472527,-3679.72,0.00036438,7]
[325259794,1714667472536,-3878.82,0.00036438,7]
[325259795,1714667472545,-500.0,0.00036438,7]
[325259796,1714667472555,-500.0,0.00036438,7]
[325259797,1714667472564,-2705.76,0.00036438,7]
[325259798,1714667472573,-698.11,0.00036438,7]
[325259799,1714667472583,-500.0,0.00036438,7]
[325259800,1714667472592,-888.3,0.00036438,7]
[325259801,1714667472602,-500.0,0.00036438,7]
[325259802,1714667472611,-500.0,0.00036438,7]
[325259803,1714667472621,-11717.04,0.00036438,7]
[325259804,1714667472630,-1042.24,0.00036438,7]
[325259805,1714667472640,-500.0,0.00036438,7]
[325259806,1714667472650,-2464.31,0.00036438,7]
[325259807,1714667472659,-1452.93,0.00036438,7]
[325259808,1714667472669,-500.0,0.00036438,7]
[325259809,1714667472679,-500.0,0.00036438,7]
[325259810,1714667472688,-627.28205896,0.00036438,7]
[325259811,1714667472697,-500.0,0.00036438,7]
[325259812,1714667472706,-500.0,0.00036438,7]
[325259813,1714667472715,-500.0,0.00036438,7]
[325259814,1714667472725,-500.0,0.00036438,7]
[325259815,1714667472735,-628.09359382,0.00036438,7]
[325259816,1714667472744,-500.0,0.00036438,7]
[325259817,1714667472753,-1651.45,0.00036438,7]
[325259818,1714667472762,-1501.49,0.00036438,7]
[325259819,1714667472772,-4025.12,0.00036438,7]
[325259820,1714667472781,-1965.68,0.00036438,7]
[325259821,1714667472790,-500.0,0.00036438,7]
[325259822,1714667472799,-2069.67,0.00036438,7]
[325259823,1714667472809,-500.0,0.00036438,7]
[325259824,1714667472819,-1206.75,0.00036438,7]
[325259825,1714667472829,-6699.88,0.00036438,7]
[325259826,1714667472839,-9805.6,0.00036438,7]
[325259827,1714667472849,-500.0,0.00036438,7]
[325259828,1714667472858,-1232.52,0.00036438,7]
[325259829,1714667472867,-500.0,0.00036438,7]
[325259830,1714667472876,-500.0,0.00036438,7]
[325259831,1714667472886,-510.82,0.00036438,7]
[325259832,1714667472897,-500.0,0.00036438,7]
[325259833,1714667472906,-11018.11,0.00036438,7]
[325259834,1714667472915,-500.0,0.00036438,7]
[325259835,1714667472924,-1021.25,0.00036438,7]
[325259836,1714667472934,-8164.48,0.00036438,7]
[325259837,1714667472943,-500.0,0.00036438,7]
[325259838,1714667472951,-514.57544441,0.00036438,7]
[325259839,1714667472961,-500.0,0.00036438,7]
[325259840,1714667472970,-603.61,0.00036438,7]
[325259841,1714667472979,-500.0,0.00036438,7]
[325259842,1714667472988,-500.0,0.00036438,7]
[325259843,1714667472997,-500.0,0.00036438,7]
[325259844,1714667473009,-516.37,0.00036438,7]
[325259845,1714667473018,-500.0,0.00036438,7]
[325259846,1714667473028,-895.62,0.00036438,7]
[325259847,1714667473038,-3543.82,0.00036438,7]
[325259848,1714667473047,-659.04,0.00036438,7]
[325259849,1714667473057,-3513.05,0.00036438,7]
[325259850,1714667473066,-500.0,0.00036438,7]
[325259851,1714667473075,-500.0,0.00036438,7]
[325259852,1714667473084,-500.0,0.00036438,7]
[325259853,1714667473093,-1065.94,0.00036438,7]
[325259854,1714667473102,-500.0,0.00036438,7]
[325259855,1714667473111,-3257.68,0.00036438,7]
[325259856,1714667473121,-532.98252414,0.00036438,7]
[325259857,1714667473130,-5887.11,0.00036438,7]
[325259858,1714667473139,-986.23,0.00036438,7]
[325259859,1714667473149,-500.0,0.00036438,7]
[325259860,1714667473158,-500.0,0.00036438,7]
[325259861,1714667473167,-500.0,0.00036438,7]
[325259862,1714667473175,-730.33,0.00036438,7]
[325259863,1714667473184,-500.0,0.00036438,2]
[325259864,1714667473194,-7424.77,0.00036438,7]
[325259865,1714667473203,-9848.89,0.00036438,7]
[325259866,1714667473212,-500.0,0.00036438,7]
[325259867,1714667473221,-500.0,0.00036438,7]
[325259868,1714667473230,-500.0,0.00036438,7]
[325259869,1714667473239,-6254.95,0.00036438,7]
[325259870,1714667473249,-500.0,0.00036438,7]
[325259871,1714667473257,-781.36,0.00036438,7]
[325259872,1714667473268,-500.0,0.00036438,7]
[325259873,1714667473277,-976.04,0.00036438,7]
[325259874,1714667473286,-500.0,0.00036438,7]
[325259875,1714667473295,-500.0,0.00036438,7]
[325259876,1714667473305,-500.0,0.00036438,7]
[325259877,1714667473314,-2897.55,0.00036438,7]
[325259878,1714667473323,-500.0,0.00036438,7]
[325259879,1714667473332,-500.0,0.00036438,7]
[325259880,1714667473342,-500.0,0.00036438,2]
[325259881,1714667473351,-500.0,0.00036438,7]
[325259882,1714667473360,-500.0,0.00036438,7]
[325259883,1714667473370,-500.0,0.00036438,7]
[325259884,1714667473379,-570.14,0.00036438,7]
[325259885,1714667473390,-1024.92,0.00036438,7]
[325259886,1714667473399,-6491.33,0.00036438,7]
[325259887,1714667473408,-500.0,0.00036438,7]
[325259888,1714667473417,-590.44,0.00036438,7]
[325259889,1714667473426,-500.0,0.00036438,7]
[325259890,1714667473435,-1478.92,0.00036438,7]
[325259891,1714667473444,-500.0,0.00036438,7]
[325259892,1714667473453,-500.0,0.00036438,7]
[325259893,1714667473462,-968.38,0.00036438,7]
[325259894,1714667473605,-500.0,0.00036438,7]
[325259895,1714667473629,-500.0,0.00036438,7]
[325259896,1714667473640,-19442.09,0.00036438,7]
[325259897,1714667473649,-500.0,0.00036438,7]
[325259898,1714667473658,-1001.86,0.00036438,7]
[325259899,1714667473667,-2952.1,0.00036438,7]
[325259900,1714667473676,-819.54,0.00036438,7]
[325259901,1714667473686,-500.0,0.00036438,7]
[325259902,1714667473695,-3059.94,0.00036438,7]
[325259903,1714667473704,-500.0,0.00036438,7]
[325259904,1714667473713,-795.07,0.00036438,7]
[325259905,1714667473722,-500.0,0.00036438,7]
[325259906,1714667473731,-500.0,0.00036438,7]
[325259907,1714667473741,-3463.21,0.00036438,7]
[325259908,1714667473751,-500.0,0.00036438,7]
[325259909,1714667473760,-13279.58,0.00036438,7]
[325259910,1714667473770,-500.0,0.00036438,7]
[325259911,1714667473779,-500.0,0.00036438,7]
[325259912,1714667473788,-1076.26,0.00036438,7]
[325259913,1714667473797,-500.0,0.00036438,7]
[325259914,1714667473807,-18209.22,0.00036438,7]
[325259915,1714667473816,-7110.62,0.00036438,7]
[325259916,1714667473825,-500.0,0.00036438,7]
[325259917,1714667473834,-500.0,0.00036438,7]
[325259918,1714667473843,-565.04,0.00036438,7]
[325259919,1714667473852,-500.0,0.00036438,7]
[325259920,1714667473861,-500.0,0.00036438,7]
[325259921,1714667473870,-500.0,0.00036438,7]
[325259922,1714667473879,-500.0,0.00036438,7]
[325259923,1714667473891,-3950.25146337,0.00036448,9]
[325259924,1714667473901,-150.0,0.00036493,120]
[325259925,1714667473910,-1000.0,0.000365,11]
[325259926,1714667473919,-1002.0,0.000365,12]
[325259927,1714667473928,-1000.0,0.000365,10]
[325259928,1714667473937,-308.76784163,0.00036589,2]
[325259929,1714667473946,-3950.25146337,0.00036669,9]
[325259930,1714667473955,-511.65393322,0.00036712,7]
[325259931,1714667473963,-500.0,0.00036712,7]
[325259932,1714667473972,-502.57966157,0.00036712,7]
[325259933,1714667473982,-500.0,0.00036712,7]
[325259934,1714667473991,-178.05529658,0.00036712,7]
[325259935,1714667474001,-500.0,0.00036712,7]
[325259936,1714667474011,-500.0,0.00036712,7]
[325259937,1714667474021,-500.0,0.00036712,7]
[325259938,1714667474030,-500.0,0.00036712,7]
[325259939,1714667474040,-513.64862195,0.00036712,7]
[325259940,1714667474049,-506.53851156,0.00036712,7]
[325259941,1714667474058,-500.0,0.00036712,7]
[325259942,1714667474067,-503.2194123,0.00036712,7]
[325259943,1714667474076,-500.0,0.00036712,7]
[325259944,1714667474085,-502.14765135,0.00036712,7]
[325259945,1714667474094,-500.0,0.00036712,7]
[325259946,1714667474103,-636.27904295,0.00036712,7]
[325259947,1714667474112,-500.0,0.00036712,7]
[325259948,1714667474121,-302.1684401,0.00036712,7]
[325259949,1714667474131,-500.0,0.00036712,7]
[325259950,1714667474143,-500.0,0.00036712,7]
[325259951,1714667474152,-545.42547484,0.00036712,7]
[325259952,1714667474162,-500.0,0.00036712,7]
[325259953,1714667474171,-500.0,0.00036712,7]
[325259954,1714667474180,-500.0,0.00036712,7]
[325259955,1714667474189,-500.0,0.00036712,7]
[325259956,1714667474198,-500.0,0.00036712,7]
[325259957,1714667474209,-500.0,0.00036712,7]
[325259958,1714667474218,-500.0,0.00036712,7]
[325259959,1714667474228,-585.38516562,0.00036712,7]
[325259960,1714667474237,-500.0,0.00036712,7]
[325259961,1714667474248,-500.0,0.00036712,7]
[325259962,1714667474260,-500.0,0.00036712,7]
[325259963,1714667474270,-559.50243922,0.00036712,7]
[325259964,1714667474279,-500.0,0.00036712,7]
[325259965,1714667474289,-500.0,0.00036712,7]
[325259966,1714667474299,-500.0,0.00036712,7]
[325259967,1714667474309,-500.0,0.00036712,7]
[325259968,1714667474318,-414.95063069,0.00036712,7]
[325259969,1714667474328,-500.0,0.00036712,7]
[325259970,1714667474339,-500.0,0.00036712,7]
[325259971,1714667474348,-712.36,0.00036712,7]
[325259972,1714667474358,-500.0,0.00036712,7]
[325259973,1714667474367,-500.0,0.00036712,7]
[325259974,1714667474379,-500.0,0.00036712,7]
[325259975,1714667474391,-500.0,0.00036712,7]
[325259976,1714667474400,-500.0,0.00036712,7]
[325259977,1714667474409,-500.0,0.00036712,7]
[325259978,1714667474420,-510.14,0.00036712,7]
[325259979,1714667474428,-500.0,0.00036712,7]
[325259980,1714667474437,-500.0,0.00036712,7]
[325259981,1714667474446,-644.34,0.00036712,7]
[325259982,1714667474455,-500.0,0.00036712,7]
[325259983,1714667474465,-500.56,0.00036712,7]
[325259984,1714667474475,-548.1,0.00036712,7]
[325259985,1714667474484,-500.0,0.00036712,7]
[325259986,1714667474493,-530.89282212,0.00036712,7]
[325259987,1714667474503,-500.0,0.00036712,7]
[325259988,1714667474512,-500.0,0.00036712,7]
[325259989,1714667474522,-500.0,0.00036712,7]
[325259990,1714667474531,-500.0,0.00036712,7]
[325259991,1714667474540,-500.0,0.00036712,7]
[325259992,1714667474550,-607.02,0.00036712,7]
[325259993,1714667474559,-684.9,0.00036712,7]
[325259994,1714667474568,-500.0,0.00036712,7]
[325259995,1714667474578,-500.0,0.00036712,7]
[325259996,1714667474587,-500.0,0.00036712,7]
[325259997,1714667474596,-500.0,0.00036712,7]
[325259998,1714667474606,-508.15029784,0.00036712,7]
[325259999,1714667474616,-500.0,0.00036712,7]
[325260000,1714667474625,-500.0,0.00036712,7]
[325260001,1714667474642,-500.0,0.00036712,7]
[325260002,1714667474665,-500.0,0.00036712,7]
[325260003,1714667474682,-500.0,0.00036712,7]
[325260004,1714667474703,-500.0,0.00036712,7]
[325260005,1714667474727,-549.89,0.00036712,7]
[325260006,1714667474744,-500.0,0.00036712,7]
[325260007,1714667474763,-500.0,0.00036712,7]
[325260008,1714667474778,-500.0,0.00036712,7]
[325260009,1714667474796,-500.0,0.00036712,7]
[325260010,1714667474817,-500.0,0.00036712,7]
[325260011,1714667474834,-500.0,0.00036712,7]
[325260012,1714667474849,-500.0,0.00036712,7]
[325260013,1714667474865,-504.31652276,0.00036712,7]
[325260014,1714667474883,-505.17,0.00036712,2]
[325260015,1714667474897,-609.55,0.00036712,7]
[325260016,1714667474912,-500.0,0.00036712,7]
[325260017,1714667474927,-500.0,0.00036712,7]
[325260018,1714667474942,-500.0,0.00036712,7]
[325260019,1714667474959,-500.0,0.00036712,7]
[325260020,1714667474973,-500.0,0.00036712,7]
[325260021,1714667474988,-719.24,0.00036712,7]
[325260022,1714667475004,-501.96994337,0.00036712,7]
[325260023,1714667475020,-500.0,0.00036712,7]
[325260024,1714667475035,-500.0,0.00036712,7]
[325260025,1714667475049,-500.0,0.00036712,7]
[325260026,1714667475064,-500.0,0.00036712,7]
[325260027,1714667475079,-500.0,0.00036712,7]
[325260028,1714667475094,-500.0,0.00036712,7]
[325260029,1714667475108,-500.0,0.00036712,7]
[325260030,1714667475124,-500.0,0.00036712,7]
[325260031,1714667475138,-500.0,0.00036712,7]
[325260032,1714667475154,-500.0,0.00036712,7]
[325260033,1714667475169,-500.0,0.00036712,7]
[325260034,1714667475184,-500.0,0.00036712,7]
[325260035,1714667475200,-494.82243829,0.00036712,7]
[325260036,1714667475215,-500.0,0.00036712,7]
[325260037,1714667475228,-500.0,0.00036712,7]
[325260038,1714667475243,-500.0,0.00036712,7]
[325260039,1714667475259,-500.0,0.00036712,7]
[325260040,1714667475277,-500.0,0.00036712,7]
[325260041,1714667475292,-500.0,0.00036712,7]
[325260042,1714667475308,-500.0,0.00036712,7]
[325260043,1714667475323,-500.0,0.00036712,7]
[325260044,1714667475338,-245.27007598,0.00036712,7]
[325260045,1714667475353,-500.0,0.00036712,7]
[325260046,1714667475368,-849.68,0.00036712,7]
[325260047,1714667475383,-500.0,0.00036712,7]
[325260048,1714667475397,-505.94437327,0.00036712,7]
[325260049,1714667475412,-500.0,0.00036712,7]
[325260050,1714667475427,-500.0,0.00036712,7]
[325260051,1714667475446,-500.0,0.00036712,7]
[325260052,1714667475461,-500.0,0.00036712,7]
[325260053,1714667475476,-914.78,0.00036712,7]
[325260054,1714667475490,-500.0,0.00036712,7]
[325260055,1714667475505,-500.0,0.00036712,7]
[325260056,1714667475520,-527.16,0.00036712,7]
[325260057,1714667475534,-500.0,0.00036712,7]
[325260058,1714667475549,-504.79221949,0.00036712,7]
[325260059,1714667475564,-574.3,0.00036712,7]
[325260060,1714667475579,-993.52,0.00036712,7]
[325260061,1714667475594,-500.0,0.00036712,7]
[325260062,1714667475609,-500.0,0.00036712,7]
[325260063,1714667475625,-500.0,0.00036712,7]
[325260064,1714667475642,-596.19,0.00036712,7]
[325260065,1714667475658,-500.0,0.00036712,7]
[325260066,1714667475674,-745.05,0.00036712,7]
[325260067,1714667475690,-566.11,0.00036712,7]
[325260068,1714667475706,-500.0,0.00036712,7]
[325260069,1714667475721,-500.0,0.00036712,7]
[325260070,1714667475736,-623.30717991,0.00036712,7]
[325260071,1714667475752,-500.0,0.00036712,7]
[325260072,1714667475767,-500.0,0.00036712,7]
[325260073,1714667475783,-500.0,0.00036712,7]
[325260074,1714667475798,-500.0,0.00036712,7]
[325260075,1714667475814,-519.97061135,0.00036712,7]
[325260076,1714667475829,-500.0,0.00036712,7]
[325260077,1714667475844,-500.0,0.00036712,7]
[325260078,1714667475858,-500.0,0.00036712,7]
[325260079,1714667475873,-959.3,0.00036712,7]
[325260080,1714667475887,-501.44360027,0.00036712,7]
[325260081,1714667475903,-500.0,0.00036712,7]
[325260082,1714667475918,-500.0,0.00036712,7]
[325260083,1714667475933,-573.70843139,0.00036712,7]
[325260084,1714667475948,-500.0,0.00036712,7]
[325260085,1714667475962,-500.0,0.00036712,7]
[325260086,1714667475977,-500.0,0.00036712,7]
[325260087,1714667475991,-500.0,0.00036712,7]
[325260088,1714667476009,-500.0,0.00036712,7]
[325260089,1714667476025,-500.0,0.00036712,7]
[325260090,1714667476041,-500.0,0.00036712,7]
[325260091,1714667476055,-500.0,0.00036712,7]
[325260092,1714667476070,-500.0,0.00036712,7]
[325260093,1714667476086,-627.09,0.00036712,7]
[325260094,1714667476100,-1500.0,0.00036712,7]
[325260095,1714667476114,-500.0,0.00036712,7]
[325260096,1714667476130,-500.0,0.00036712,7]
[325260097,1714667476154,-500.0,0.00036712,7]
[325260098,1714667476169,-500.0,0.00036712,7]
[325260099,1714667476185,-500.0,0.00036712,7]
[325260100,1714667476199,-500.0,0.00036712,7]
[325260101,1714667476215,-500.0,0.00036712,7]
[325260102,1714667476229,-500.0,0.00036712,7]
[325260103,1714667476244,-500.0,0.00036712,7]
[325260104,1714667476263,-500.0,0.00036712,7]
[325260105,1714667476482,-755.19,0.00036712,7]
[325260106,1714667476506,-500.0,0.00036712,7]
[325260107,1714667476516,-500.0,0.00036712,7]
[325260108,1714667476525,-500.0,0.00036712,7]
[325260109,1714667476534,-500.0,0.00036712,7]
[325260110,1714667476544,-500.0,0.00036712,7]
[325260111,1714667476553,-500.0,0.00036712,7]
[325260112,1714667476562,-845.46,0.00036712,7]
[325260113,1714667476571,-500.0,0.00036712,7]
[325260114,1714667476580,-500.0,0.00036712,7]
[325260115,1714667476590,-500.0,0.00036712,7]
[325260116,1714667476599,-500.0,0.00036712,7]
[325260117,1714667476608,-500.0,0.00036712,7]
[325260118,1714667476617,-500.0,0.00036712,7]
[325260119,1714667476626,-500.0,0.00036712,7]
[325260120,1714667476635,-500.0,0.00036712,7]
[325260121,1714667476645,-500.0,0.00036712,7]
[325260122,1714667476654,-500.0,0.00036712,7]
[325260123,1714667476664,-237.72215345,0.00036712,7]
[325260124,1714667476673,-500.0,0.00036712,7]
[325260125,1714667476682,-500.0,0.00036712,7]
[325260126,1714667476691,-500.0,0.00036712,7]
[325260127,1714667476701,-500.0,0.00036712,7]
[325260128,1714667476710,-500.0,0.00036712,7]
[325260129,1714667476719,-500.0,0.00036712,7]
[325260130,1714667476728,-521.92633104,0.00036712,7]
[325260131,1714667476738,-500.0,0.00036712,7]
[325260132,1714667476747,-500.0,0.00036712,7]
[325260133,1714667476757,-596.32636257,0.00036712,7]
[325260134,1714667476766,-500.0,0.00036712,7]
[325260135,1714667476775,-500.0,0.00036712,7]
[325260136,1714667476785,-500.0,0.00036712,7]
[325260137,1714667476795,-168.23518753,0.00036712,7]
[325260138,1714667476804,-500.0,0.00036712,7]
[325260139,1714667476814,-611.89,0.00036712,7]
[325260140,1714667476823,-644.39,0.00036712,7]
[325260141,1714667476833,-615.29,0.00036712,7]
[325260142,1714667476842,-1140.87,0.00036712,7]
[325260143,1714667476851,-500.0,0.00036712,7]
[325260144,1714667476861,-500.0,0.00036712,7]
[325260145,1714667476870,-549.9,0.00036712,7]
[325260146,1714667476880,-500.0,0.00036712,7]
[325260147,1714667476889,-770.62,0.00036712,7]
[325260148,1714667476900,-500.0,0.00036712,7]
[325260149,1714667476909,-503.50435535,0.00036712,7]
[325260150,1714667476919,-500.0,0.00036712,7]
[325260151,1714667476928,-500.0,0.00036712,7]
[325260152,1714667476938,-500.0,0.00036712,7]
[325260153,1714667476948,-500.0,0.00036712,7]
[325260154,1714667476957,-500.0,0.00036712,7]
[325260155,1714667476967,-500.0,0.00036712,7]
[325260156,1714667476976,-500.0,0.00036712,7]
[325260157,1714667476986,-500.0,0.00036712,7]
[325260158,1714667476995,-500.0,0.00036712,7]
[325260159,1714667477006,-500.0,0.00036712,7]
[325260160,1714667477015,-836.15,0.00036712,7]
[325260161,1714667477025,-500.0,0.00036712,7]
[325260162,1714667477035,-500.0,0.00036712,7]
[325260163,1714667477044,-500.0,0.00036712,7]
[325260164,1714667477054,-727.61,0.00036712,7]
[325260165,1714667477063,-500.0,0.00036712,7]
[325260166,1714667477072,-500.0,0.00036712,7]
[325260167,1714667477082,-1025.66,0.00036712,7]
[325260168,1714667477091,-567.55112598,0.00036712,7]
[325260169,1714667477100,-500.0,0.00036712,7]
[325260170,1714667477109,-500.0,0.00036712,7]
[325260171,1714667477119,-500.0,0.00036712,7]
[325260172,1714667477127,-500.0,0.00036712,7]
[325260173,1714667477137,-535.49253514,0.00036712,7]
[325260174,1714667477150,-500.0,0.00036712,7]
[325260175,1714667477158,-500.0,0.00036712,7]
[325260176,1714667477167,-500.0,0.00036712,7]
[325260177,1714667477176,-500.0,0.00036712,7]
[325260178,1714667477185,-500.0,0.00036712,7]
[325260179,1714667477194,-1147.41,0.00036712,7]
[325260180,1714667477204,-500.0,0.00036712,7]
[325260181,1714667477214,-500.0,0.00036712,7]
[325260182,1714667477223,-500.0,0.00036712,2]
[325260183,1714667477232,-500.0,0.00036712,7]
[325260184,1714667477242,-500.0,0.00036712,7]
[325260185,1714667477253,-500.0,0.00036712,7]
[325260186,1714667477264,-500.0,0.00036712,7]
[325260187,1714667477273,-500.0,0.00036712,7]
[325260188,1714667477282,-500.0,0.00036712,7]
[325260189,1714667477291,-348.28546285,0.00036712,7]
[325260190,1714667477300,-500.0,0.00036712,7]
[325260191,1714667477310,-500.0,0.00036712,7]
[325260192,1714667477319,-500.0,0.00036712,7]
[325260193,1714667477328,-200.0,0.00036712,7]
[325260194,1714667477339,-500.0,0.00036712,7]
[325260195,1714667477348,-500.0,0.00036712,7]
[325260196,1714667477358,-500.0,0.00036712,7]
[325260197,1714667477367,-500.0,0.00036712,7]
[325260198,1714667477376,-500.0,0.00036712,7]
[325260199,1714667477385,-594.67902162,0.00036712,7]
[325260200,1714667477396,-500.0,0.00036712,7]
[325260201,1714667477406,-583.1,0.00036712,7]
[325260202,1714667477415,-921.28,0.00036712,7]
[325260203,1714667477424,-500.0,0.00036712,7]
[325260204,1714667477434,-500.0,0.00036712,7]
[325260205,1714667477443,-500.0,0.00036712,7]
[325260206,1714667477453,-500.0,0.00036712,7]
[325260207,1714667477462,-505.45091721,0.00036712,7]
[325260208,1714667477471,-551.41,0.00036712,7]
[325260209,1714667477480,-500.0,0.00036712,7]
[325260210,1714667477490,-769.1,0.00036712,7]
[325260211,1714667477499,-500.0,0.00036712,7]
[325260212,1714667477510,-150.0,0.00036712,7]
[325260213,1714667477520,-500.0,0.00036712,7]
[325260214,1714667477529,-724.19,0.00036712,7]
[325260215,1714667477539,-516.25,0.00036712,7]
[325260216,1714667477549,-500.0,0.00036712,7]
[325260217,1714667477558,-500.0,0.00036712,7]
[325260218,1714667477568,-500.0,0.00036712,7]
[325260219,1714667477577,-500.0,0.00036712,7]
[325260220,1714667477586,-500.0,0.00036712,7]
[325260221,1714667477595,-506.75533397,0.00036712,7]
[325260222,1714667477604,-500.0,0.00036712,7]
[325260223,1714667477614,-500.0,0.00036712,7]
[325260224,1714667477623,-500.0,0.00036712,7]
[325260225,1714667477632,-500.0,0.00036712,7]
[325260226,1714667477643,-508.0507357,0.00036712,7]
[325260227,1714667477651,-500.0,0.00036712,7]
[325260228,1714667477660,-973.87,0.00036712,7]
[325260229,1714667477669,-500.0,0.00036712,7]
[325260230,1714667477677,-733.40172261,0.00036712,7]
[325260231,1714667477687,-500.0,0.00036712,7]